Cogmind - Beta 17 @@@ ROGUE MODE // 2026.08.07 @ 06:53:46 Player: 4R-ZE3 Result: Destroyed by Overlord with Heavy Hardcell Cannon Performance ------------- Evolutions (7) 3500 Regions Visited (14) 2800 Robots Destroyed (253) 1265 Value Destroyed (15746) 15746 Prototype IDs (32) 640 Alien Tech Used (3) 600 Bonus (8921) 8921 TOTAL SCORE: 33472 Bonus ------- High Alert Combat Kills 1035 Registered with UFD 300 Met Optimus in HQ 500 Met Warlord at Base 500 MAIN.C Attacked Warlord 500 Warlord Defense Kills 3086 Used Core Reset Matrix 3000 Cogmind --------- Core Integrity 0/1300 Matter 300/300 Energy 100/100 System Corruption 35% Temperature Cool (0) Movement Core (50) Location -3/Protoforge Parts ------- > --- POWER (3) -------- (None) > --- PROPULSION (6) --- (None) > --- UTILITY (10) ----- (None) > --- WEAPON (2) ------- (None) > --- INVENTORY (5) ---- Advanced Power Amplifier Experimental Heat Sink Advanced Coolant Injector Precision Energy Filter Subatomic Replicator Peak State ------------ > --- POWER ------------ Light Antimatter Reactor Micro Antimatter Reactor Matter Drive > --- PROPULSION ------- Armored Heavy Treads Armored Heavy Treads Armored Heavy Treads > --- UTILITY ---------- Advanced Cryofiber Web Advanced Heat Sink Huge Storage Unit Advanced Sensor Array Improved Signal Interpreter Experimental Targeting Computer Quantum Capacitor Centrium Medium Armor Plating Graphene Brace > --- WEAPON ----------- Sigix Terminator > --- INVENTORY -------- Reinforced Fission Core Quantum Reactor Armored Medium Treads Armored Medium Treads Armored Heavy Treads Armored Heavy Treads Advanced Power Amplifier Advanced Cryofiber Web Advanced Heat Sink Advanced Heat Sink Precision Energy Filter Quantum Capacitor Experimental Core Shielding Subatomic Replicator Gamma Rifle Quantum Rifle Quantum Rifle Long-range Phase Cannon Vortex Cannon Advanced Remote Datajack [Rating: 179] Favorites ----------- Power Neutrino Core Engine Improved Ion Engine Power Core Neutrino Core Reactor Light Antimatter Reactor Propulsion Armored Medium Treads Treads Armored Medium Treads Leg Flexi-carbon Leg Wheel Wheel Utility Improved Signal Interpreter Device Advanced Heat Sink Storage Huge Storage Unit Processor Improved Signal Interpreter Hackware Improved System Shield Protection Makeshift Light Armor Plating Weapon Subdweller Machine Gun Energy Gun Overtuned Beamcaster Energy Cannon Heavy Plasma Cannon Ballistic Gun Subdweller Machine Gun Launcher Long-range Missile Launcher Special Weapon Advanced Remote Datajack Build | -11 -10 -10 -9 -9 -6 -5 -4 -4 -4 -4 -3 -3 -3 -3 ------- Run | Yrd Mat Sub Rec Scr Fac Fac Fac Upp Upp War Pro Res Qua Frg Slots Evolved 14 | . . . . . 8 2 2 . . . . 2 . . Power 2 | . . . . . 1 . . . . . . 1 . . Propulsion 4 | . . . . . 2 . 1 . . . . 1 . . Utility 8 | . . . . . 5 2 1 . . . . . . . Weapon . | . . . . . . . . . . . . . . . Parts Attached 209 | 6 4 8 4 4 29 34 14 2 3 16 . 33 43 9 Power 35 | 1 . 1 1 1 3 9 3 . . 4 . 4 7 1 Engine 7 | 1 . 1 . 1 2 2 . . . . . . . . Core 13 | . . . 1 . 1 6 1 . . 3 . . 1 . Reactor 15 | . . . . . . 1 2 . . 1 . 4 6 1 Propulsion 55 | 2 . 3 3 . 7 9 5 . 1 6 . 7 9 3 Treads 49 | 2 . . 2 . 7 9 3 . 1 6 . 7 9 3 Leg 2 | . . . . . . . 2 . . . . . . . Wheel 4 | . . 3 1 . . . . . . . . . . . Hover . | . . . . . . . . . . . . . . . Flight . | . . . . . . . . . . . . . . . Utility 83 | 1 3 1 . 1 17 13 5 2 . 4 . 14 18 4 Device 53 | . . . . . 11 8 5 1 . 2 . 10 14 2 Storage 4 | 1 1 . . . 1 1 . . . . . . . . Processor 5 | . 1 . . . 2 . . . . . . 1 1 . Hackware 2 | . . . . . . 2 . . . . . . . . Protection 19 | . 1 1 . 1 3 2 . 1 . 2 . 3 3 2 Artifact . | . . . . . . . . . . . . . . . Weapon 36 | 2 1 3 . 2 2 3 1 . 2 2 . 8 9 1 Energy Gun 16 | 1 1 . . 2 . . . . 1 1 . 3 6 1 Energy Cannon 12 | . . . . . 2 2 1 . 1 1 . 4 1 . Ballistic Gun 4 | 1 . 3 . . . . . . . . . . . . Ballistic Cannon . | . . . . . . . . . . . . . . . Launcher 3 | . . . . . . 1 . . . . . 1 1 . Special Weapon 1 | . . . . . . . . . . . . . 1 . Impact Weapon . | . . . . . . . . . . . . . . . Slashing Weapon . | . . . . . . . . . . . . . . . Piercing Weapon . | . . . . . . . . . . . . . . . Special Melee Weapon . | . . . . . . . . . . . . . . . Unidentified Prototypes 16 | . . . . . 1 2 . 1 . 2 . 1 7 2 Parts Lost 90 | . 1 6 . . 3 7 6 3 . 10 3 13 28 10 Power 17 | . . 1 . . . 2 . . . 2 . 3 7 2 Propulsion 19 | . . 3 . . 1 1 1 1 . 4 . 1 5 2 Utility 35 | . . . . . 1 4 3 1 . 4 1 7 11 3 Weapon 19 | . 1 2 . . 1 . 2 1 . . 2 2 5 3 Highest Loss Streak 9 | . 1 3 . . 2 2 2 2 . 9 3 5 7 7 To Critical Strikes 1 | . . . . . . . . 1 . . . . . . Average Backups 19 | . 5 12 18 17 17 19 24 24 24 24 22 22 18 7 Power 1 | . 1 4 4 1 . . 3 3 3 2 2 1 1 . Propulsion 3 | . . 1 3 4 3 4 3 3 3 2 4 4 3 1 Utility 8 | . 1 5 7 8 9 9 9 10 10 10 8 7 6 3 Weapon 4 | . 1 1 2 3 4 4 7 7 6 7 6 7 5 1 Tool/Special . | . . . . . . . . . . . . . . . Unused Backups 46 | . . . . 10 10 6 4 . . 5 . 8 . 3 Power 6 | . . . . 5 . . 1 . . . . . . . Propulsion 5 | . . . . 2 . 2 . . . . . 1 . . Utility 16 | . . . . 2 4 3 1 . . 1 . 3 . 2 Weapon 16 | . . . . 1 6 1 1 . . 4 . 3 . . Tool/Special 3 | . . . . . . . 1 . . . . 1 . 1 Average Slot Usage (%) 90 | . 97 95 99 98 92 85 90 88 90 90 92 89 77 79 Engine 4 | . 14 13 5 10 11 1 . . . . . . . . Core 4 | . . . 8 3 1 9 5 5 5 5 5 2 1 4 Reactor 3 | . . . . . . . 4 5 5 4 5 10 11 7 Treads 20 | . 28 6 10 28 25 11 19 21 21 21 26 23 15 17 Wheel 1 | . . 16 17 . . . . . . . . . . . Device 19 | . . . . . 24 21 29 22 31 29 25 26 27 23 Storage 7 | . 14 14 14 14 6 5 5 5 5 5 5 4 4 4 Processor 4 | . 11 6 . . 5 5 5 5 5 5 5 4 5 9 Hackware 4 | . . . . . . 10 10 10 10 8 5 3 . . Protection 4 | . . 7 14 14 1 4 . 4 . . 5 1 1 2 Energy Gun 4 | . 16 13 . 5 10 . . . . . . 2 4 4 Energy Cannon 4 | . . . . . 2 10 10 9 6 8 8 5 1 . Ballistic Gun 5 | . 12 14 28 21 . . . . . . . . . . Peak Build Rating 179 | 6 9 15 18 26 67 100 119 120 120 119 111 154 179 145 Average Rating 84 | 4 7 11 16 18 56 95 113 117 114 107 108 132 147 137 On Entrance 69 | . 6 9 15 17 26 67 98 104 112 114 108 101 139 133 Avg Prop Armor Cover (%) 6 | . . . 4 . . 13 . . . . . . . . Naked Turns 4 | . . . . . . . . . . . . . . 4 Heaviest Build 195 | 13 50 57 57 64 97 148 141 149 135 166 165 195 173 161 Greatest Support 190 | 40 40 40 40 40 92 140 170 160 160 150 138 190 190 180 Greatest Overweight (x) 5 | . 1 5 5 1 1 1 4 . . 1 1 1 . . Average Overweight (x) . | . . 2 2 1 . . . . . . 1 . . . Largest Inventory Capacity 25 | 8 20 20 20 20 20 25 25 25 25 25 25 25 25 25 Average Capacity 22 | 6 15 20 20 20 20 23 25 25 25 25 25 25 25 24 Most Carried 25 | 1 9 17 20 20 20 25 25 25 25 25 23 25 25 9 Average Carried 19 | . 5 13 19 18 18 22 24 24 24 24 22 22 20 7 Final Capacity 25 | 8 20 20 20 20 20 25 25 25 25 25 25 25 25 5 Final Carried 25 | 1 9 16 20 20 20 22 25 23 25 23 21 23 8 5 Scrap Suit Usage (%) 2 | . . . . . 21 . . . . . . . . . Parts Cannibalized 1 | . . . . . 1 . . . . . . . . . Class Distribution -------------------- 37% | Scavenger-Mutant 16% | Hacker-Mutant 14% | Hacker-Skirmisher 13% | Mutant 8% | Scavenger-Skirmisher 7% | Scrapper Dominant Class ---------------- Mutant | -10/Materials Mutant | -10/Subcaves Scavenger-Mutant | -9/Recycling Scavenger-Mutant | -9/Scraptown Scrapper | -6/Factory Hacker-Mutant | -5/Factory Hacker-Mutant | -4/Factory Hacker-Skirmisher | -4/Upper Caves Hacker-Mutant | -4/Upper Caves Hacker-Mutant | -4/Warlord Scavenger-Skirmisher | -3/Proximity Caves Scavenger-Mutant | -3/Research Scavenger-Mutant | -3/Quarantine Scavenger-Mutant | -3/Protoforge Resources | -11 -10 -10 -9 -9 -6 -5 -4 -4 -4 -4 -3 -3 -3 -3 ----------- Run | Yrd Mat Sub Rec Scr Fac Fac Fac Upp Upp War Pro Res Qua Frg Matter Collected 5044 | 186 141 123 44 48 415 896 397 115 50 523 393 705 617 391 Remotely . | . . . . . . . . . . . . . . . Salvage Created 13529 | . 392 299 151 . 1172 3211 1140 372 193 873 563 2481 2057 625 Parts 517 | . 21 24 14 . 20 118 52 10 10 19 8 106 88 27 Haulers Intercepted 2 | . . . . . 2 . . . . . . . . . Recyclers Shooed 4 | . 1 . 1 . 1 . . . . . . 1 . . Parts Field Recycled . | . . . . . . . . . . . . . . . Retrieved Matter . | . . . . . . . . . . . . . . . Parts Self-Destructed 45 | . . 13 . . . . . 14 12 . 6 . . . Prevented . | . . . . . . . . . . . . . . . Parts Restored . | . . . . . . . . . . . . . . . Kills | -11 -10 -10 -9 -9 -6 -5 -4 -4 -4 -4 -3 -3 -3 -3 ------- Run | Yrd Mat Sub Rec Scr Fac Fac Fac Upp Upp War Pro Res Qua Frg Combat Hostiles Destroyed 228 | . 8 9 3 . 15 48 13 8 6 20 17 45 28 8 Guns 63 | . 8 9 3 . 9 . . . . . . 14 12 8 Cannons 103 | . . . . . . 40 10 7 6 4 3 23 10 . AOE 35 | . . . . . . 3 . . . 14 14 4 . . Classes Destroyed 24 | . 3 3 1 . 5 3 1 1 . 2 . 2 3 . Worker 3 | . 1 . . . . 1 1 . . . . . . . Builder 3 | . . . . . . 3 . . . . . . . . Tunneler 1 | . . . . . . . . . . . . 1 . . Hauler 2 | . . . . . 2 . . . . . . . . . Recycler 5 | . 1 . . . . 2 2 . . . . . . . Minesweeper 1 | . . . . . . . . 1 . . . . . . Operator 1 | . . . . . . . 1 . . . . . . . Turret 1 | . . 1 . . . . . . . . . . . . Watcher 6 | . . . . . 1 2 1 . . . . 2 . . Swarmer 18 | . . 3 . . . . . 5 4 . . 5 1 . Saboteur 1 | . . . . . . . . . . . . 1 . . Grunt 84 | . 8 . . . 5 20 3 . . 9 16 9 11 3 Brawler 9 | . . . . . 2 3 . . . . 1 2 1 . Duelist 2 | . . . . . . 1 . . . . . . 1 . Researcher 2 | . . . . . . . . . . . . . 2 . Sentry 16 | . . . 3 . 3 2 2 . . . . 4 . 2 Specialist 5 | . . . . . . . . . . 2 . . 3 . Hunter 20 | . . . . . . 9 4 3 . . . 4 . . Programmer 59 | . . . . . 4 12 4 . 2 6 . 20 9 2 Behemoth 3 | . . . . . 1 1 . . . 1 . . . . Hotshot 1 | . . . . . . . . . . . . . . 1 Executioner 2 | . . . . . . . . . . 2 . . . . Alpha 7 1 | . . . . . . . . . . . . . 1 . Fortress 1 | . . . . . . . . . . . . . 1 . Subdweller 6 | . . 6 . . . . . . . . . . . . Best Kill Streak 16 | . 3 4 2 . 4 6 3 5 5 16 9 8 4 4 Combat Bots Only 16 | . 3 3 2 . 4 5 3 5 5 16 9 8 4 4 Max Kills in Single Turn 2 | . 1 1 1 . 1 2 2 1 1 2 2 2 2 1 Gunslinging . | . . . . . . . . . . . . . . . Exploded 2 | . . . . . . 1 . . . 2 2 2 . . Melee . | . . . . . . . . . . . . . . . Uniques/NPCs Destroyed . | . . . . . . . . . . . . . . . Combat | -11 -10 -10 -9 -9 -6 -5 -4 -4 -4 -4 -3 -3 -3 -3 -------- Run | Yrd Mat Sub Rec Scr Fac Fac Fac Upp Upp War Pro Res Qua Frg Hostile Shots Fired 2250 | . 52 56 6 . 154 299 108 117 27 334 102 476 442 77 Missed 580 | . 14 18 . . 52 79 32 36 6 122 38 86 80 17 Hits 1670 | . 38 38 6 . 102 220 76 81 21 212 64 390 362 60 Melee 11 | . . . . . . 4 . . . . . . 7 . Projectile 1659 | . 38 38 6 . 102 216 76 81 21 212 64 390 355 60 Critical Strikes 95 | . 1 1 . . 3 7 4 4 1 7 5 28 29 5 Actively Blocked 55 | . . . . . . . . . . . . 22 29 4 Part Disruptions 7 | . . . . . . 1 . . 1 1 . 3 1 . Damage Taken 32184 | . 492 529 84 . 1284 4278 1350 717 158 2239 1176 7386 10380 2111 Core 2169 | . 45 54 27 . 127 155 99 26 . 267 38 343 546 442 Absorbed by Shields 2842 | . . . . . . . 228 474 102 838 150 1050 . . Reduced by Siege Mode 2563 | . . . . . . 285 44 19 5 87 . 572 1382 169 Redirected to Shielding 136 | . . . . . . . . . . . . . 136 . Ignored by Resistances 1197 | . . . . . 85 228 101 126 70 319 . 109 159 . Regen/Repaired (Parts) 192 | . . . . . 8 . . . . 184 . . . . Core Remaining (%) 76 | 100 . . . 49 85 84 . . . . 62 . . . Volleys Fired 1253 | . 36 33 6 . 110 171 54 33 16 37 36 231 398 92 Largest 2 | . 2 2 2 . 2 2 2 2 1 2 2 2 2 1 Hottest 210 | . 115 115 60 . 200 195 203 175 85 165 165 210 150 94 Shots Fired 1685 | . 72 61 12 . 187 311 95 53 16 59 45 293 393 88 Gun 793 | . 72 61 12 . 168 . . . . . . 135 258 87 Cannon 846 | . . . . . 19 308 95 53 16 45 22 155 133 . Launcher 44 | . . . . . . 3 . . . 14 23 3 1 . Special 2 | . . . . . . . . . . . . . 1 1 Kinetic 89 | . 32 45 12 . . . . . . . . . . . Thermal 1455 | . 40 16 . . 187 308 95 53 16 45 22 259 328 86 Explosive 43 | . . . . . . 3 . . . 14 23 3 . . Electromagnetic 46 | . . . . . . . . . . . . 6 39 1 Entropic 50 | . . . . . . . . . . . . 25 25 . Robot Hit Streak 75 | . 9 20 13 . 19 16 13 8 7 15 6 34 75 23 Robot Miss Streak 4 | . 2 3 1 . 2 4 2 2 3 3 3 4 3 2 Penetration Max . | . . . . . . . . . . . . . . . Secondary Targets 4 | . 2 1 . . 1 . . . . . . . . . Max Gunslinging Chain 1 | . 1 1 . . 1 . . . . . . . . . Capacitor 553 | . . . . . . . . . . . . 89 377 87 Shots Hit Robots 1217 | . 52 43 11 . 92 202 50 38 11 45 23 227 345 78 Core Hits 512 | . 24 17 4 . 26 93 21 15 7 42 55 83 98 27 Critical Kills 13 | . . . . . . 5 2 1 . 2 . 2 1 . Critical Parts Destroyed 2 | . . 2 . . . . . . . . . . . . Critical Strikes 49 | . 2 5 . . 18 5 2 1 . 2 . 12 2 . Burn 22 | . 2 2 . . 18 . . . . . . . . . Meltdown 13 | . . . . . . 5 2 1 . 2 . 2 1 . Destroy 3 | . . 3 . . . . . . . . . . . . Sunder 11 | . . . . . . . . . . . . 10 1 . Melee Attacks . | . . . . . . . . . . . . . . . Impact . | . . . . . . . . . . . . . . . Slashing . | . . . . . . . . . . . . . . . Piercing . | . . . . . . . . . . . . . . . Sneak Attacks . | . . . . . . . . . . . . . . . Combat Hostiles . | . . . . . . . . . . . . . . . Follow-up Attacks . | . . . . . . . . . . . . . . . Damage Inflicted 47166 | . 594 858 245 . 2874 8275 2431 1183 399 3757 3297 9401 11630 2222 Guns 15339 | . 594 858 245 . 2564 . . . . . . 3606 5250 2222 Cannons 22096 | . . . . . 310 7381 2123 1183 399 1028 262 4895 4515 . Explosions 9731 | . . . . . . 894 308 . . 2729 3035 900 1865 . Melee . | . . . . . . . . . . . . . . . Ramming . | . . . . . . . . . . . . . . . Kinetic 1063 | . 169 649 245 . . . . . . . . . . . Thermal 34764 | . 425 209 . . 2874 7381 2431 1183 399 1028 262 7171 9185 2216 Explosive 7558 | . . . . . . 894 . . . 2729 3035 900 . . Electromagnetic 1102 | . . . . . . . . . . . . 28 1068 6 Impact . | . . . . . . . . . . . . . . . Slashing . | . . . . . . . . . . . . . . . Piercing . | . . . . . . . . . . . . . . . Entropic 2679 | . . . . . . . . . . . . 1302 1377 . Highest Corruption 58 | . . . . . . 24 . . 1 13 13 40 58 35 Average Corruption 17 | . . . . . . 12 . . 1 10 13 14 31 33 Corruption Purged . | . . . . . . . . . . . . . . . Corruption Blocked . | . . . . . . . . . . . . . . . Effects 392 | . . . . . . 87 . . 2 17 45 101 102 38 Message Errors 100 | . . . . . . 25 . . . 8 13 21 22 11 Matter Fused 76 | . . . . . . 21 . . 1 4 7 19 18 6 Heat Flow Errors 38 | . . . . . . 8 . . . . 7 9 11 3 Energy Discharges 43 | . . . . . . 11 . . . 3 4 12 9 4 Parts Rejected 5 | . . . . . . . . . . . . . 5 . Data Loss (minor) 40 | . . . . . . 9 . . . 2 5 14 5 5 Data Loss (major) 17 | . . . . . . 7 . . 1 . 3 3 3 . Misfires 15 | . . . . . . 3 . . . . 4 3 4 1 Alerts 8 | . . . . . . 1 . . . . . 3 4 . Misdirections 8 | . . . . . . . . . . . . 1 4 3 Weapon Failures 42 | . . . . . . 2 . . . . 2 16 17 5 Overload Shots 10 | . . . . . . 9 1 . . . . . . . Effects 1 | . . . . . . 1 . . . . . . . . Short Circuit 1 | . . . . . . 1 . . . . . . . . Overflow Damage 837 | . . . . . . 152 95 64 11 128 86 232 69 . Projectiles 623 | . . . . . . 118 95 64 11 68 17 218 32 . Explosions 214 | . . . . . . 34 . . . 60 69 14 37 . Melee . | . . . . . . . . . . . . . . . Knockbacks . | . . . . . . . . . . . . . . . Impact . | . . . . . . . . . . . . . . . Kinetic . | . . . . . . . . . . . . . . . Secondary . | . . . . . . . . . . . . . . . Self-Inflicted Damage 425 | . . . . . . 226 113 . . 20 66 . . . Shots 10 | . . . . . . 5 2 . . 1 2 . . . Rammed . | . . . . . . . . . . . . . . . Targets Rammed . | . . . . . . . . . . . . . . . Kicked . | . . . . . . . . . . . . . . . Crushed . | . . . . . . . . . . . . . . . Highest Temperature 442 | . 334 8 39 . 442 355 . . . . 51 402 244 378 Average Temperature 109 | . 92 3 17 . 131 101 . . . . 31 116 97 190 Received Heat Transfer 3500 | . 291 90 27 . 315 777 125 . . 160 343 367 849 156 Effects 8 | . . . . . 5 2 . . . . . 1 . . Shutdowns 1 | . . . . . 1 . . . . . . . . . Energy Bleed 2 | . . . . . 1 . . . . . . 1 . . Interference 5 | . . . . . 3 2 . . . . . . . . Siege Activations 52 | . . . . . . 12 8 3 2 2 . 6 13 6 Total Turns 1246 | . . . . . . 291 66 64 18 39 . 241 433 94 Longest Duration 178 | . . . . . . 50 23 27 16 24 . 92 178 39 Martial Activations . | . . . . . . . . . . . . . . . Shielding Activations . | . . . . . . . . . . . . . . . Robots Disrupted . | . . . . . . . . . . . . . . . Combat Hostiles . | . . . . . . . . . . . . . . . Robots Corrupted 5 | . . . . . . . . . . . . . 5 . Combat Hostiles 5 | . . . . . . . . . . . . . 5 . Parts Fried 5 | . . . . . . . . . . . . . 5 . Impact Corruptions . | . . . . . . . . . . . . . . . Robots Melted 26 | . . . . . 7 6 4 2 . 2 . 4 1 . Combat Hostiles 22 | . . . . . 6 5 3 1 . 2 . 4 1 . Parts Melted 121 | . 3 . . . 22 41 7 10 1 7 . 27 3 . Heat Transferred 44544 | . 1332 629 . . 6550 10630 2817 1653 444 1466 487 7550 8312 2674 Parts Sabotaged 1 | . . . . . . 1 . . . . . . . . Parts Stolen . | . . . . . . . . . . . . . . . Parts Stripped . | . . . . . . . . . . . . . . . Power Chain Reactions . | . . . . . . . . . . . . . . . Alert | -11 -10 -10 -9 -9 -6 -5 -4 -4 -4 -4 -3 -3 -3 -3 ------- Run | Yrd Mat Sub Rec Scr Fac Fac Fac Upp Upp War Pro Res Qua Frg Maximum Alert Level 3 | . . . . . . 3 2 . . . . 3 2 1 Low Security (%) 54 | 100 100 . 100 . 100 43 . . . . . 69 6 10 Level 1 26 | . . . . . . 13 62 . . . . 9 75 89 Level 2 13 | . . . . . . 20 37 . . . . 13 18 . Level 3 6 | . . . . . . 23 . . . . . 7 . . Level 4 . | . . . . . . . . . . . . . . . Level 5 . | . . . . . . . . . . . . . . . High Security . | . . . . . . . . . . . . . . . Max Security . | . . . . . . . . . . . . . . . Peak Influence 929 | . 52 . 75 . 122 929 519 . . . . 733 532 295 Initial 444 | . . . 75 . . 35 444 . . . . 81 402 258 Average 224 | . 14 . 12 . 56 365 405 . . . . 195 307 233 Influence Increases 6802 | . 245 170 65 . 489 1588 569 195 140 400 380 1325 974 262 Destroy 0b10 Robot/C 4500 | . 160 80 60 . 300 960 260 160 120 400 340 900 600 160 Destroy 0b10 Robot/NC 110 | . 10 . . . 15 40 25 5 . . . 15 . . Destroy Leader 836 | . 40 . . . 106 214 72 30 20 . 40 184 90 40 Successful Hack 105 | . 20 . 4 . 19 23 22 . . . . 14 3 . Disable Machine 255 | . . . . . . 90 75 . . . . 30 60 . Destroy Structure 726 | . . . 1 . 49 246 100 . . . . 122 206 2 Partial Spotted 45 | . . . . . . 15 15 . . . . 15 . . Lose Combat Pursuer 225 | . 15 90 . . . . . . . . . 45 15 60 Influence Decreases 6644 | . 229 28 223 . 415 754 1026 614 172 212 446 730 1231 564 Entered New Map 1515 | . . 8 83 . . 39 464 168 7 . 188 41 315 202 Time Decay 4279 | . 219 20 140 . 385 645 502 416 165 112 228 559 626 262 Lost Part 840 | . 10 . . . 30 70 60 30 . 100 30 130 280 100 Lost Ally 10 | . . . . . . . . . . . . . 10 . Squads Dispatched 55 | . 1 . . . 9 15 6 . . . . 10 11 3 Investigation 7 | . . . . . 3 2 2 . . . . . . . Extermination 27 | . . . . . 5 5 4 . . . . 7 5 1 Reinforcement 10 | . 1 . . . 1 3 . . . . . 2 1 2 Assault 4 | . . . . . . 1 . . . . . 1 2 . Garrison 7 | . . . . . . 4 . . . . . . 3 . Intercept . | . . . . . . . . . . . . . . . Searches Triggered . | . . . . . . . . . . . . . . . Construction Impeded 2 | . . . . . 1 1 . . . . . . . . Haulers Reinforced 1 | . . . . . . 1 . . . . . . . . Active Scanning Responses . | . . . . . . . . . . . . . . . Cargo Convoy Interrupts . | . . . . . . . . . . . . . . . Stealth | -11 -10 -10 -9 -9 -6 -5 -4 -4 -4 -4 -3 -3 -3 -3 --------- Run | Yrd Mat Sub Rec Scr Fac Fac Fac Upp Upp War Pro Res Qua Frg Distress Signals 11 | . 1 . . . . 2 . . . 1 . 2 2 3 Communications Jammed . | . . . . . . . . . . . . . . . Distress Signals . | . . . . . . . . . . . . . . . Times Spotted 305 | . 14 16 2 . 15 60 17 9 7 35 17 58 39 16 Peak Tracking Total 11 | . 4 6 2 . 4 6 3 5 5 11 5 6 4 6 Tactical Retreats 9 | . 1 2 . . . . . . . . . 3 1 2 Traps | -11 -10 -10 -9 -9 -6 -5 -4 -4 -4 -4 -3 -3 -3 -3 ------- Run | Yrd Mat Sub Rec Scr Fac Fac Fac Upp Upp War Pro Res Qua Frg Traps Triggered 10 | . . . . . 3 2 1 . . . . . 2 2 Indirectly . | . . . . . . . . . . . . . . . Trap Hack Attempts . | . . . . . . . . . . . . . . . Triggered . | . . . . . . . . . . . . . . . Disarmed . | . . . . . . . . . . . . . . . Reprogrammed . | . . . . . . . . . . . . . . . Reused . | . . . . . . . . . . . . . . . Traps Extracted . | . . . . . . . . . . . . . . . Installed . | . . . . . . . . . . . . . . . Triggered . | . . . . . . . . . . . . . . . Machines | -11 -10 -10 -9 -9 -6 -5 -4 -4 -4 -4 -3 -3 -3 -3 ---------- Run | Yrd Mat Sub Rec Scr Fac Fac Fac Upp Upp War Pro Res Qua Frg Machines Disabled 19 | . . . . . . 6 5 . . . . 2 6 . Max in Single Turn 4 | . . . . . . 2 4 . . . . 1 1 . Garrison Access 1 | . . . . . . 1 . . . . . . . . Machines Repaired . | . . . . . . . . . . . . . . . Machines Dismantled . | . . . . . . . . . . . . . . . Machines Sabotaged . | . . . . . . . . . . . . . . . Overloaded Fab Kills . | . . . . . . . . . . . . . . . Hacking | -11 -10 -10 -9 -9 -6 -5 -4 -4 -4 -4 -3 -3 -3 -3 --------- Run | Yrd Mat Sub Rec Scr Fac Fac Fac Upp Upp War Pro Res Qua Frg Machines Accessed 58 | . 5 . 7 3 9 11 5 . 1 6 . 6 4 1 Terminals 28 | . 3 . 4 . 6 6 2 . . . . 4 2 1 Fabricators . | . . . . . . . . . . . . . . . Repair Stations 1 | . . . . . . 1 . . . . . . . . Recycling Units 11 | . 2 . 3 . 2 2 2 . . . . . . . Scanalyzers 4 | . . . . . 1 . 1 . . . . 1 1 . Garrison Access 4 | . . . . . . 2 . . . . . 1 1 . Total Hacks 127 | . 15 . 11 10 18 29 18 . 1 6 . 11 7 1 Successful 61 | . 7 . 6 10 7 11 11 . 1 6 . 1 1 . Failed 64 | . 8 . 5 . 11 18 6 . . . . 10 5 1 Catastrophic 18 | . . . 2 . 2 6 1 . . . . 4 2 1 Database Lockouts 2 | . . . . . . . 1 . . . . . 1 . Manual 71 | . 10 . 7 . 15 16 13 . . . . 7 2 1 Terminals 69 | . 10 . 6 . 13 20 9 . . . . 8 2 1 Fabricators . | . . . . . . . . . . . . . . . Repair Stations 5 | . . . . . . 5 . . . . . . . . Recycling Units 19 | . 5 . 5 . 3 2 4 . . . . . . . Scanalyzers 13 | . . . . . 2 . 5 . . . . 2 4 . Garrison Access 4 | . . . . . . 2 . . . . . 1 1 . Terminal Hacks 28 | . 3 . 1 10 1 3 3 . 1 6 . . . . Record 9 | . . . . 4 . . . . . 5 . . . . Robot Analysis 9 | . 3 . 1 5 . . . . . . . . . . Open Door 2 | . . . . . . . . . 1 1 . . . . Level Access Points 2 | . . . . . . 1 1 . . . . . . . Recycling Unit Index 1 | . . . . . 1 . . . . . . . . . Alert Level 1 | . . . . . . 1 . . . . . . . . Zone Layout 3 | . . . . . . 1 2 . . . . . . . Proto ID Catalog 1 | . . . . 1 . . . . . . . . . . Fabricator Hacks . | . . . . . . . . . . . . . . . Repair Station Hacks 1 | . . . . . . 1 . . . . . . . . Scan Component 1 | . . . . . . 1 . . . . . . . . Recycling Unit Hacks 3 | . 1 . 2 . . . . . . . . . . . Retrieve Components 3 | . 1 . 2 . . . . . . . . . . . Scanalyzer 5 | . . . . . 1 . 3 . . . . . 1 . Insert Component 1 | . . . . . 1 . . . . . . . . . Retrieve Study 4 | . . . . . . . 3 . . . . . 1 . Garrison Access Hacks 1 | . . . . . . 1 . . . . . . . . Seal Access 1 | . . . . . . 1 . . . . . . . . Unauthorized Hacks 23 | . 3 . 3 . 5 6 5 . . . . 1 . . Terminals 17 | . 3 . 3 . 3 4 3 . . . . 1 . . Assimilate 1 | . . . . . . . 1 . . . . . . . Botnet 16 | . 3 . 3 . 3 4 2 . . . . 1 . . Fabricators . | . . . . . . . . . . . . . . . Repair Stations . | . . . . . . . . . . . . . . . Recycling Units 6 | . . . . . 2 2 2 . . . . . . . Fedlink 6 | . . . . . 2 2 2 . . . . . . . Scanalyzers . | . . . . . . . . . . . . . . . Garrison Access . | . . . . . . . . . . . . . . . Data Cores Recovered 1 | . . . . . . . 1 . . . . . . . Used . | . . . . . . . . . . . . . . . Hacking Detections 34 | . 3 . 5 . 7 7 2 . . . . 6 3 1 Full Trace Events . | . . . . . . . . . . . . . . . Feedback Events . | . . . . . . . . . . . . . . . Feedback Blocked . | . . . . . . . . . . . . . . . Robot Schematics Acquired 1 | . . . . . . . . . . . . . 1 . Robots Built . | . . . . . . . . . . . . . . . Authchips . | . . . . . . . . . . . . . . . Time . | . . . . . . . . . . . . . . . Total Robot Build Rating . | . . . . . . . . . . . . . . . Part Schematics Acquired 3 | . . . . . . . . . . . . . 3 . Parts Built . | . . . . . . . . . . . . . . . Authchips . | . . . . . . . . . . . . . . . Time . | . . . . . . . . . . . . . . . Total Part Build Rating . | . . . . . . . . . . . . . . . Part Studies Acquired 4 | . . . . . . . 3 . . . . . 1 . Parts Repaired . | . . . . . . . . . . . . . . . Time . | . . . . . . . . . . . . . . . Parts Recycled . | . . . . . . . . . . . . . . . Recycled Matter . | . . . . . . . . . . . . . . . Retrieved Matter . | . . . . . . . . . . . . . . . Retrieved Components 10 | . 6 . 4 . . . . . . . . . . . Parts Scanalyzed 1 | . . . . . 1 . . . . . . . . . Part Schematics Acquired . | . . . . . . . . . . . . . . . Parts Damaged . | . . . . . . . . . . . . . . . Bothacking | -11 -10 -10 -9 -9 -6 -5 -4 -4 -4 -4 -3 -3 -3 -3 ------------ Run | Yrd Mat Sub Rec Scr Fac Fac Fac Upp Upp War Pro Res Qua Frg Used RIF Installer . | . . . . . . . . . . . . . . . Robots Hacked 2 | . . . . . . . . . . . . . 1 1 Non-combat 1 | . . . . . . . . . . . . . . 1 Combat . | . . . . . . . . . . . . . . . Robot Hacks Applied 1 | . . . . . . . . . . . . . . 1 parse_system 1 | . . . . . . . . . . . . . . 1 Manual 1 | . . . . . . . . . . . . . 1 . Relay Couplers Released 4 | . . . . . . . . . . . . . 4 . Programmers 4 | . . . . . . . . . . . . . 4 . Fabnet Peak Effective % . | . . . . . . . . . . . . . . . Robots Rewired . | . . . . . . . . . . . . . . . Allies Hacked . | . . . . . . . . . . . . . . . Hacks Repelled . | . . . . . . . . . . . . . . . Allies | -11 -10 -10 -9 -9 -6 -5 -4 -4 -4 -4 -3 -3 -3 -3 -------- Run | Yrd Mat Sub Rec Scr Fac Fac Fac Upp Upp War Pro Res Qua Frg Total Allies 1 | . . . . . . . . . . . . . 1 . Largest Group 1 | . . . . . . . . . . . . . 1 . Highest-Rated Group 26 | . . . . . . . . . . . . . 26 . Highest-Rated Ally 26 | . . . . . . . . . . . . . 26 . Initial UFD Resources 72 | . . . . . 22 38 54 68 68 68 72 72 72 72 Total Orders . | . . . . . . . . . . . . . . . Ally Attacks . | . . . . . . . . . . . . . . . Total Damage . | . . . . . . . . . . . . . . . Kills . | . . . . . . . . . . . . . . . Allies Corrupted . | . . . . . . . . . . . . . . . Allies Melted . | . . . . . . . . . . . . . . . Intel | -11 -10 -10 -9 -9 -6 -5 -4 -4 -4 -4 -3 -3 -3 -3 ------- Run | Yrd Mat Sub Rec Scr Fac Fac Fac Upp Upp War Pro Res Qua Frg Active Infowar (turns) 13455 | . . . . . 2367 2771 1354 913 609 952 1069 1749 1671 . Sensors 12768 | . . . . . 2367 2317 1354 869 492 952 1005 1749 1663 . Terrain 6330 | . . . . . 343 1584 659 909 609 506 865 . 855 . Cloaking 2132 | . . . . . 344 1549 239 . . . . . . . ECM 1 | . . . . . . . . . . . . . 1 . Robot Analysis Total 9 | . 3 . 1 5 . . . . . . . . . . Derelict Logs Recovered 7 | . . . . 5 . . . 1 1 . . . . . Drone Launches . | . . . . . . . . . . . . . . . Drone Recoveries . | . . . . . . . . . . . . . . . Exploration | -11 -10 -10 -9 -9 -6 -5 -4 -4 -4 -4 -3 -3 -3 -3 ------------- Run | Yrd Mat Sub Rec Scr Fac Fac Fac Upp Upp War Pro Res Qua Frg Turns Passed 22074 | 56 832 988 619 3212 2678 2933 1354 1000 609 1387 1069 2604 2156 577 Spaces Moved 9886 | 32 354 594 380 1327 1374 1138 629 556 363 719 391 974 821 234 Core 10 | 4 . . . . . . . . . . . . . 6 Treads 9094 | 28 354 94 98 1327 1374 1138 629 556 363 719 391 974 821 228 Legs . | . . . . . . . . . . . . . . . Wheels 782 | . . 500 282 . . . . . . . . . . . Hover . | . . . . . . . . . . . . . . . Flight . | . . . . . . . . . . . . . . . Fastest Speed 50 | 50 160 105 115 240 146 155 148 148 148 155 248 160 161 50 Average Speed 178 | 146 199 144 152 240 159 177 150 148 149 166 248 189 168 164 Slowest Speed 465 | 160 240 240 320 240 240 240 465 148 155 248 248 248 173 170 Overloaded Moves . | . . . . . . . . . . . . . . . Propulsion Burnouts . | . . . . . . . . . . . . . . . Robots Hopped . | . . . . . . . . . . . . . . . Potential Cave-ins . | . . . . . . . . . . . . . . . Cave-ins Triggered . | . . . . . . . . . . . . . . . Exploration Rate (%) 49 | 3 72 46 64 83 38 33 10 69 62 80 64 27 75 13 Regions Visited 14 Branch Regions 9 Pre-discovered Areas 4 | . . . . 3 1 . . . . . . . . . Known Exits Taken 9 | . . . . . 1 1 1 1 1 1 1 1 1 . Unknown Exits Taken 5 | 1 1 1 1 1 . . . . . . . . . . Scrap Searched 9 | . . . . 4 . . . 1 2 . 2 . . . Spaces Dug 119 | . . . . . 44 36 18 4 . . . 13 4 . Terrain Destroyed 1587 | . . . . . 55 144 58 15 4 60 214 57 980 . Melee . | . . . . . . . . . . . . . . . Projectile 234 | . . . . . 55 74 30 15 4 1 4 36 15 . AOE 1353 | . . . . . . 70 28 . . 59 210 21 965 . Terrain Rammed . | . . . . . . . . . . . . . . . Walls Destroyed . | . . . . . . . . . . . . . . . Machines Disabled . | . . . . . . . . . . . . . . . Actions | -11 -10 -10 -9 -9 -6 -5 -4 -4 -4 -4 -3 -3 -3 -3 --------- Run | Yrd Mat Sub Rec Scr Fac Fac Fac Upp Upp War Pro Res Qua Frg Total 13227 | 38 414 662 409 1362 1762 1744 941 676 411 851 439 1525 1570 423 Wait 1382 | . 12 15 12 . 177 322 198 75 23 37 1 205 227 78 Move 9872 | 31 353 593 379 1326 1373 1137 628 555 362 718 390 973 820 234 Hop . | . . . . . . . . . . . . . . . Pick Up 161 | 1 8 12 4 15 27 20 14 1 4 11 . 27 15 2 Fast Attach 100 | 6 2 1 3 3 4 12 8 1 . 7 . 17 30 6 Attach 124 | . 1 6 . . 17 18 8 3 1 10 2 18 33 7 Detach 32 | . . . 1 . 5 7 2 . . 4 . 6 5 2 Swap 136 | . 1 1 1 1 24 26 14 8 4 13 10 15 18 . Drop 164 | . 1 1 3 17 25 29 15 . 1 14 . 33 24 1 Fire 1253 | . 36 33 6 . 110 171 54 33 16 37 36 231 398 92 Melee . | . . . . . . . . . . . . . . . Ram 1 | . . . . . . . . . . . . . . 1 Kick . | . . . . . . . . . . . . . . . Crush . | . . . . . . . . . . . . . . . Escape Stasis 2 | . . . . . . 2 . . . . . . . . Rewire . | . . . . . . . . . . . . . . . Trap . | . . . . . . . . . . . . . . . Miscellaneous . | . . . . . . . . . . . . . . . Route ------- -11/Scrapyard -10/Materials (discovered 4 exits: [*Mat x2] / [*Min] / [*Sub]) -10/Subcaves -9/Recycling -9/Scraptown -6/Factory -5/Factory (discovered 6 exits: *Fac x4 / *Upp x2) -4/Factory (discovered 5 exits: Res x4 / *Upp) -4/Upper Caves -4/Upper Caves (discovered 2 exits: *Res / *War) -4/Warlord -3/Proximity Caves -3/Research -3/Quarantine (discovered 2 exits: [*Sec] / *Frg) -3/Protoforge History --------- Turn | Location | Event 11 | -11/Scrapyard | Discovered new exit (range 14) 57 | -11/Scrapyard | Entered Materials 149 | -10/Materials | Discovered new exit (range 14) 309 | -10/Materials | Build established: Mutant 612 | -10/Materials | Discovered new exit (range 7) 680 | -10/Materials | Discovered new exit (range 9) 867 | -10/Materials | Discovered new exit (range 10) 889 | -10/Materials | Entered Subcaves 1169 | -10/Subcaves | Lost 3 parts (2n1w) 1308 | -10/Subcaves | Shifting Twisted Machinery released Mak. Light Armor Plating 1370 | -10/Subcaves | Shifting Twisted Machinery released Flamer 1490 | -10/Subcaves | Build established: Scavenger-Mutant 1618 | -10/Subcaves | Lost 3 parts (1p1n1w) 1833 | -10/Subcaves | Discovered new exit (range 13) 1877 | -10/Subcaves | Entered Recycling 2107 | -9/Recycling | Core integrity fell below 50% 2427 | -9/Recycling | Scanned before Scraplab entrance 2475 | -9/Recycling | Entered Scraplab 2494 | -9/Recycling | Discovered new exit (range 2) 2496 | -9/Recycling | Entered Scraptown 2597 | -9/Scraptown | Heard Great Nut preacher, LISTEN AND RECITE! 2679 | -9/Scraptown | Scanned Subdweller tech in exchange for log data 2684 | -9/Scraptown | Learned location of Testing (-2) 2686 | -9/Scraptown | Learned location of 1 exit from Lower Caves 2688 | -9/Scraptown | Learned location of Warlord (-4) 2691 | -9/Scraptown | Learned location of Zion (-6) 2811 | -9/Scraptown | Visited UFD Registry 2811 | -9/Scraptown | Registered with UFD as "Gammaranger" 2878 | -9/Scraptown | Visited Science Guys 2955 | -9/Scraptown | Visited Analyses Database 3008 | -9/Scraptown | Visited Supply Room 3084 | -9/Scraptown | Delivered Scrap Shield to a Scientist 3195 | -9/Scraptown | Visited Research Penetration Think Tank 3245 | -9/Scraptown | Visited DA-N13 Charitable Foundation 3255 | -9/Scraptown | Found DCF Scrap (28 items) 3326 | -9/Scraptown | Visited Infowarlord's Domain 3343 | -9/Scraptown | Found Exp. Terrain Scanner 3377 | -9/Scraptown | Visited Chapter 10 3430 | -9/Scraptown | Visited Abandonware Association 3459 | -9/Scraptown | Learned abandonware demo "HACKBUD.EXE" 3521 | -9/Scraptown | Visited Curators Association 3593 | -9/Scraptown | Visited Modified Component R&D 4613 | -9/Scraptown | Visited Symbiants 4651 | -9/Scraptown | Visited Shadow of the Wyrm 4690 | -9/Scraptown | Visited Awakened 4707 | -9/Scraptown | Visited TADAMA 4740 | -9/Scraptown | Visited Red Mages 5213 | -9/Scraptown | Build established: Mutant 5280 | -9/Scraptown | Found Scrap Suit 5588 | -9/Scraptown | Met Optimus 5588 | -9/Scraptown | Accepted into 0bPrime 5704 | -9/Scraptown | Discovered new exit (range 3) 5708 | -9/Scraptown | Entered Factory 5708 | -6/Factory | Evolved 8 slots: Power x1, Propulsion x2, Utility x5 6025 | -6/Factory | Build established: Scrapper 6595 | -6/Factory | Discovered new exit (range 8) 6617 | -6/Factory | Identified exit to Factory 7288 | -6/Factory | Loaded intel: 8 recycling unit locations 7358 | -6/Factory | Build established: Scavenger-Scrapper 7643 | -6/Factory | Spotted B-75 Beast 7723 | -6/Factory | Destroyed B-75 Beast 8023 | -6/Factory | Build established: Scavenger-Mutant 8270 | -6/Factory | Learned location of Protoforge (-3) 8332 | -6/Factory | Build established: Scavenger-Skirmisher 8386 | -6/Factory | Entered another Factory area 8386 | -5/Factory | Evolved 2 slots: Utility x2 8657 | -5/Factory | Discovered new exit (range 8) 8675 | -5/Factory | Identified exit to Upper Caves 8707 | -5/Factory | Build established: Hacker-Skirmisher 8933 | -5/Factory | Garrison activated, responded to threat 9497 | -5/Factory | Spotted B-75 Beast 9532 | -5/Factory | Destroyed B-75 Beast 9644 | -5/Factory | Garrison activated, responded to threat 9802 | -5/Factory | Build established: Hacker-Mutant 9923 | -5/Factory | System corruption reached 10% 10026 | -5/Factory | Loaded intel: 8 recycling unit locations 10786 | -5/Factory | First assault squad dispatched 10917 | -5/Factory | Identified exit to Factory 11083 | -5/Factory | Discovered exit to Upper Caves (range 6) 11319 | -5/Factory | Entered another Factory area 11319 | -4/Factory | Evolved 2 slots: Propulsion x1, Utility x1 11465 | -4/Factory | Loaded intel: 8 recycling unit locations 11590 | -4/Factory | Identified exit to Research 12287 | -4/Factory | Central database locked down 12408 | -4/Factory | Build established: Hacker-Skirmisher 12430 | -4/Factory | Discovered new exit (range 6) 12440 | -4/Factory | Identified exit to Upper Caves 12673 | -4/Factory | Entered Upper Caves 12675 | -4/Upper Caves | UFD Scientist delivered a prototype 12700 | -4/Upper Caves | Found Prototype Protection 12700 | -4/Upper Caves | Identified Enh. Scrap Shield 12801 | -4/Upper Caves | Learned Research terminal intel 13598 | -4/Upper Caves | Discovered new exit (range 11) 13672 | -4/Upper Caves | Identified exit to Upper Caves 13673 | -4/Upper Caves | Entered another Upper Caves area 13734 | -4/Upper Caves | Discovered exit to Research (range 5) 13743 | -4/Upper Caves | Learned Research trap positions 13783 | -4/Upper Caves | Build established: Hacker-Mutant 13959 | -4/Upper Caves | Encountered a Warlord checkpoint 14059 | -4/Upper Caves | Entered a destroyed Warlord outpost 14271 | -4/Upper Caves | Discovered new exit (range 8) 14280 | -4/Upper Caves | Identified exit to Warlord 14282 | -4/Upper Caves | Entered Warlord 14342 | -4/Warlord | System corruption cleaned by Quarantine Array 14691 | -4/Warlord | Build established: Hacker-Skirmisher 14766 | -4/Warlord | Visited the Vortex Lab 14766 | -4/Warlord | Warlord's base attacked by MAIN.C 14775 | -4/Warlord | Found Prototype Energy Gun 14775 | -4/Warlord | Identified Vortex Rail 14786 | -4/Warlord | Found Prototype Energy Cannon 14786 | -4/Warlord | Identified Vortex Cannon 14795 | -4/Warlord | Found Vortex Cannon 15079 | -4/Warlord | Build established: Hacker-Mutant 15116 | -4/Warlord | Warlord forces counterattacked 15226 | -4/Warlord | Spotted B-90 Cyclops 15228 | -4/Warlord | Destroyed B-90 Cyclops 15299 | -4/Warlord | Lost 7 allies 15321 | -4/Warlord | Spotted Executioner 15335 | -4/Warlord | Destroyed Executioner 15343 | -4/Warlord | System corruption reached 10% 15349 | -4/Warlord | Spotted Executioner 15360 | -4/Warlord | Spotted Executioner 15366 | -4/Warlord | Destroyed Executioner 15398 | -4/Warlord | Lost 9 parts (2p4n3u) 15400 | -4/Warlord | Destroyed 16 combat bots 15404 | -4/Warlord | Spotted B-86 Titan 15441 | -4/Warlord | Warlord base infiltrated, sounded retreat 15446 | -4/Warlord | Spotted B-90 Cyclops 15547 | -4/Warlord | Rebuked by Warlord 15576 | -4/Warlord | Spotted Striker 15582 | -4/Warlord | Spotted Striker 15625 | -4/Warlord | Lost 3 allies 15643 | -4/Warlord | Discovered new exit (range 12) 15666 | -4/Warlord | Identified exit to Proximity Caves 15669 | -4/Warlord | Entered Proximity Caves 15958 | -3/Proximity Caves | Build established: Scavenger-Skirmisher 16151 | -3/Proximity Caves | Destroyed 9 combat bots 16567 | -3/Proximity Caves | Lost 3 parts (1u2w) 16701 | -3/Proximity Caves | Discovered exit to Research (range 15) 16738 | -3/Proximity Caves | Entered Research 16738 | -3/Research | Evolved 2 slots: Power x1, Propulsion x1 16739 | -3/Research | Loaded intel: 81 trap records 16740 | -3/Research | Loaded intel: 24 terminal locations 16817 | -3/Research | Build established: Scavenger-Mutant 18161 | -3/Research | System corruption reached 10% 18303 | -3/Research | Found Fusion Bomb Launcher 18988 | -3/Research | First assault squad dispatched 18995 | -3/Research | Found Quantum Capacitor 19009 | -3/Research | System corruption reached 30% 19066 | -3/Research | Lost 5 parts (1p1n2u1w) 19179 | -3/Research | Lost 3 parts (2u1w) 19187 | -3/Research | Destroyed 8 combat bots 19308 | -3/Research | Discovered new exit (range 16) 19341 | -3/Research | Identified exit to Quarantine 19342 | -3/Research | Entered Quarantine 19375 | -3/Quarantine | Central database locked down 19477 | -3/Quarantine | Found Alien Artifact 19561 | -3/Quarantine | Found Alien Reactor 19656 | -3/Quarantine | Lost 7 parts (2p1n3u1w) 19772 | -3/Quarantine | Found Quantum Capacitor 19775 | -3/Quarantine | Found Quantum Capacitor 19778 | -3/Quarantine | Found Quantum Capacitor 19920 | -3/Quarantine | Build established: Scavenger-Skirmisher 19945 | -3/Quarantine | Found Alien Artifact 19945 | -3/Quarantine | Identified Core Reset Matrix 19945 | -3/Quarantine | Identified Subatomic Replicator 19945 | -3/Quarantine | Identified Matter Drive 19945 | -3/Quarantine | Used Core Reset Matrix 19949 | -3/Quarantine | Detected hypermatrix surge 19949 | -3/Quarantine | Sensed 10 artifacts in vicinity 20520 | -3/Quarantine | Spotted Alpha 7 20530 | -3/Quarantine | Lost 3 parts (2u1w) 20532 | -3/Quarantine | Garrison activated, responded to threat 20563 | -3/Quarantine | Destroyed Alpha 7 20594 | -3/Quarantine | Lost 3 parts (2p1u) 20710 | -3/Quarantine | Found Prototype Device 20710 | -3/Quarantine | Identified Exp. ECM Suite 20717 | -3/Quarantine | Found Prototype Processor 20717 | -3/Quarantine | Identified Exp. Targeting Computer 20739 | -3/Quarantine | Found Sigix Terminator 20961 | -3/Quarantine | Build established: Scavenger-Mutant 20963 | -3/Quarantine | Core integrity fell below 50% 21106 | -3/Quarantine | Spotted Fortress 21121 | -3/Quarantine | Fired Sigix Terminator 21245 | -3/Quarantine | Lost 6 parts (2p2u2w) 21342 | -3/Quarantine | First assault squad dispatched 21353 | -3/Quarantine | Destroyed Fortress 21488 | -3/Quarantine | Discovered new exit (range 6) 21488 | -3/Quarantine | Discovered new exit (range 7) 21496 | -3/Quarantine | Identified exit to Protoforge 21498 | -3/Quarantine | Entered Protoforge 21499 | -3/Protoforge | Sensed 2 artifacts in vicinity 21563 | -3/Protoforge | Superfortress began startup sequence 21713 | -3/Protoforge | Spotted Hotshot 21764 | -3/Protoforge | Destroyed Hotshot 22050 | -3/Protoforge | Spotted Overlord 22071 | -3/Protoforge | Core integrity fell below 20% 22071 | -3/Protoforge | Released all parts (14) 22075 | -3/Protoforge | Destroyed by Overlord with Heavy Hardcell Cannon Last Messages --------------- 22071_ Released Rnf. Fission Core. 22071_ Released Arm. Heavy Treads. 22071_ Released Adv. Cryofiber Web. 22071_ Released Med. Treads. 22071_ Released Adv. Heat Sink. 22071_ Released Exp. Heat Sink. 22071_ Released Arm. Medium Treads. 22071_ N-04 Retriever collects Adv. Heat Sink. 22071_ N-04 Retriever collects Arm. Heavy Treads. 22071_ N-04 Retriever collects Gamma Rifle. 22071_ N-04 Retriever collects Adv. Remote Datajack. 22071_ N-04 Retriever collects Unknown Hover Unit. 22071_ N-04 Retriever collects Unknown Storage. 22072_ Knocked back. 22073_ Acquired 66 matter. 22073_ Knocked back. 22074_ Acquired 51 matter. Map ----- +----------------------------------------------------+ | ?????????????????????????????????????????????????? | | ?????????????????????????????????????????????????? | | ?????????????????????????????????????????????????? | | ?????????????????????????????????????????????????? | | ?????????????????????????????????????????????????? | | ???????????????????###??#######?###??????????????? | | ???????????????????""#??# #??????????????? | | ?##############??"T""#### """" #??????????????? | | ? # # """" #??????????????? | | ? # # """" #??????????????? | | """" # """ # """" #??????????????? | | """" ""R" # """ # #??????????????? | | """" "" " ## """ # #??????????????? | | """" ## "T" # #??????????????? | | " ## """?######+####??????????????? | | #?? ???????# #????????????????? | | #####+##???????# #????????????????? | | #???????# #????????????????? | | #???????# #????????????????? | | #???????# #????????????????? | | ##+####### #???????# ^ #????????????????? | | ????# #?????###^^ ###??????????????? | | """"#???# """ #?????# #??????????????? | | """"#???# """ ####### #??????????????? | | """"#???# """ "" #??????????????? | | """"#???# @% !T= #??????????????? | | #???# n uH !!= #??????????????? | | ####?????# #####+########=!%!= #??????????????? | | ###??????# #?? #????#*!%%*! #??????????????? | | #??????# # " " #????##########??????????????? | | #??????+ + " " #????????????????????????????? | | #??????# # " " #????????????????????????????? | | #??????# # #????????????????????????????? | | #??????# # #????????????????????????????? | | #??????? ########????????????????????????????? | | #??????????????????????????????????????????????? | | #??????????????????????????????????????????????? | | #??????????????????????????????????????????????? | | ###??????????????????????????????????????????????? | | ?????????????????????????????????????????????????? | | ?????????????????????????????????????????????????? | | ?????????????????????????????????????????????????? | | ?????????????????????????????????????????????????? | | ?????????????????????????????????????????????????? | | ?????????????????????????????????????????????????? | | ?????????????????????????????????????????????????? | | ?????????????????????????????????????????????????? | | ?????????????????????????????????????????????????? | | ?????????????????????????????????????????????????? | | ?????????????????????????????????????????????????? | +----------------------------------------------------+ Best States ------------- Heat Dissipation 174 Coolant Potential 100 Energy Generation 57 Energy Capacity 805 Matter Stores 300 Matter Capacity 300 Sight Range 16 Robot Scan Range 16 Terrain Scan Range 30 Terrain Scan Density 10 Cloak Strength 2 Base Temperature (-) 200 Armor Coverage 1650 Resistance: KI 30 Resistance: TH 20 Core Shielding 40 Weapon Shielding 33 Phase Shifting 10 Evasion (%) 50 Targeting Accuracy 20 Target Analysis 8 Recoil Reduction 6 Energy Filtering 50 Particle Charging 20 Offensive Hacking 12 Defensive Hacking 12 Item Schematics ----------------- Hvy. Antimatter Reactor | -3/Quarantine | Archive Exp. Power Amplifier | -3/Quarantine | Archive Com. Particle Reactor | -3/Quarantine | Archive Robot Schematics ------------------ B-74 Champion | -3/Quarantine | Archive Fabricated ------------ Nothing Repaired ---------- Nothing Studied --------- None Alien Tech Used ----------------- Core Reset Matrix Matter Drive Sigix Terminator Achievements -------------- Z1$+NX3F=JRE3_ZNQR Challenges ------------ None Game ------ Seed MetamassFluxChronowheel Manual? 0 Play Time 03:47:15 Cumulative 192.8 hours Start 2026.08.07 @ 03:04:03 End 2026.08.07 @ 06:53:46 Sessions 1 Manual Loads 0 Difficulty Rogue Special Mode None Game No. 204 Rogue 150 Adventurer 54 Explorer 0 Win Type - Total 9 Types 5/0/1/1/0/0/0/1/0/1 Lore% 69 Gallery% 59 Achievement% 56 Wizard Run 0 Options --------- Layout 1 ASCII 0 Keyboard 0 Movement Mouse Keybinds 1 Fullscreen 2 Font 32/Tamsyn Map View 50x35 Zoom Use 0% Tactical HUD 1 Map Filters NONE Filters NONE Steam 1 RUN: 72c4480f-6679-4da1-a2e0-b05a2972e5c3